bitfinex/quotes_SOLUSD_20260203
["timestamp","ask_amount","ask_price","bid_price","bid_amount"]
[1770099845238,13.24654102,103.58,103.55,0.5]
[1770099845437,13.24529286,103.59,103.55,0.5]
[1770099846248,13.24529286,103.59,103.56,0.5]
[1770099847766,3.59166581,103.59,103.56,0.5]
[1770099850142,13.24553744,103.59,103.56,0.5]
[1770099850344,3.59166581,103.58,103.56,0.5]
[1770099850736,9.65064659,103.62,103.58,0.5]
[1770099850941,13.2423124,103.62,103.58,0.5]
[1770099851154,3.59166581,103.61,103.58,0.5]
[1770099851455,13.2423124,103.62,103.58,0.5]
[1770099851855,3.59166581,103.62,103.59,0.5]
[1770099852058,13.24184084,103.63,103.59,0.5]
[1770099852258,13.24184084,103.63,103.6,0.5]
[1770099853667,3.59166581,103.62,103.59,0.5]
[1770099854072,3.59166581,103.62,103.59,10.15338599]
[1770099854249,3.59166581,103.62,103.59,0.5]
[1770099855372,13.24242141,103.62,103.59,0.5]
[1770099855845,3.59166581,103.62,103.59,0.5]
[1770099856167,3.59166581,103.61,103.58,0.5]
[1770099857769,3.59166581,103.61,103.58,10.15437041]
[1770099858843,3.59166581,103.61,103.59,0.5]
[1770099859547,9.65068047,103.62,103.59,0.5]
[1770099859754,13.24234628,103.62,103.59,0.5]
[1770099860067,3.59166581,103.61,103.59,0.5]
[1770099862271,3.59166581,103.6,103.58,0.5]
[1770099862460,13.24348802,103.61,103.58,0.5]
[1770099863170,3.59166581,103.6,103.58,0.5]
[1770099864654,13.24348802,103.61,103.58,0.5]
[1770099864971,13.24348802,103.61,103.58,10.15431627]
[1770099865155,3.59166581,103.61,103.59,0.5]
[1770099865663,3.59166581,103.61,103.58,10.15431627]
[1770099866170,3.59166581,103.61,103.57,13.7466471]
[1770099866746,13.24325171,103.61,103.57,13.7466471]
[1770099867155,13.24325171,103.61,103.58,0.5]
[1770099869257,13.24325171,103.61,103.59,0.5]
[1770099869455,13.24325171,103.61,103.58,10.15430859]
[1770099870786,13.24325171,103.61,103.58,0.5]
[1770099872569,3.59166581,103.6,103.58,0.5]
[1770099873382,3.59166581,103.6,103.54,4.09166581]
[1770099873383,3.59166581,103.59,103.54,4.09166581]
[1770099873569,3.59166581,103.58,103.55,0.5]
[1770099873759,3.59166581,103.58,103.55,10.15661]
[1770099875485,3.59166581,103.57,103.55,10.15661]
[1770099875978,3.59166581,103.57,103.55,0.5]
[1770099876374,3.59166581,103.58,103.55,10.15689429]
[1770099876681,3.59166581,103.58,103.56,0.5]
[1770099877366,13.24621415,103.58,103.56,0.5]
[1770099877685,3.59166581,103.58,103.56,0.5]
[1770099877984,13.2460474,103.58,103.56,0.5]
[1770099878277,13.2460474,103.58,103.55,0.5]
[1770099880060,9.65344145,103.59,103.55,0.5]
[1770099880263,3.59166581,103.58,103.56,0.5]
[1770099880460,3.58670541,103.58,103.56,0.5]
[1770099882767,9.6529783,103.6,103.57,0.5]
[1770099882963,13.23968371,103.6,103.57,0.5]
[1770099884081,3.58670541,103.59,103.57,0.5]
[1770099885786,13.2406806,103.59,103.56,0.5]
[1770099886172,38.05701136,103.61,103.56,10.15570672]
[1770099886378,3.58670541,103.59,103.56,10.15570672]
[1770099886771,3.58670541,103.59,103.56,0.5]
[1770099887169,38.05701136,103.61,103.56,0.5]
[1770099887480,3.58670541,103.59,103.56,0.5]
[1770099888073,13.24014768,103.59,103.57,0.5]
[1770099888278,13.2393965,103.6,103.57,0.5]
[1770099889385,3.58670541,103.59,103.57,0.5]
[1770099890184,13.2393965,103.6,103.58,0.5]
[1770099890378,131.01235427,103.63,103.59,0.5]
[1770099890695,9.65064659,103.62,103.59,0.5]
[1770099890992,9.6500894,103.63,103.6,0.5]
[1770099891187,13.23679481,103.63,103.6,0.5]
[1770099895188,3.58670541,103.62,103.6,0.5]
[1770099895385,0.45818451,103.61,103.56,27.72561521]
[1770099895696,4.04488992,103.61,103.56,27.72561521]
[1770099896084,4.04488992,103.61,103.58,9.65396951]
[1770099897389,13.69668326,103.61,103.58,0.49084725]
[1770099897592,3.58670541,103.6,103.58,0.49084725]
[1770099897907,13.69668326,103.61,103.58,0.49084725]
[1770099902291,10.10904984,103.62,103.59,0.49084725]
[1770099902498,13.69575525,103.62,103.59,0.49084725]
[1770099902693,3.58670541,103.61,103.59,0.49084725]
[1770099902891,4.04488992,103.61,103.58,10.14473915]
[1770099903698,0.45818451,103.61,103.58,10.14473915]
[1770099904001,4.04488992,103.61,103.58,10.14473915]
[1770099904599,4.04488992,103.61,103.58,9.6538919]
[1770099904784,4.04488992,103.61,103.59,0.49084725]
[1770099905307,3.58670541,103.61,103.59,0.49084725]
[1770099906005,4.04488992,103.61,103.58,10.14473915]
[1770099906906,4.04488992,103.61,103.57,27.72450278]
[1770099906907,4.04488992,103.6,103.57,10.1457554]
[1770099907301,3.58670541,103.6,103.58,0.49084725]
[1770099909190,4.04488992,103.61,103.58,10.14520451]
[1770099909700,13.6965169,103.61,103.58,0.49084725]
[1770099910004,13.69597683,103.62,103.59,0.49084725]
[1770099910401,13.69504421,103.63,103.59,0.49084725]
[1770099911395,13.69504421,103.63,103.6,0.49084725]
[1770099913803,0.45818451,103.62,103.6,0.49084725]
[1770099914008,4.04488992,103.62,103.59,10.14366882]
[1770099914318,4.04488992,103.62,103.6,0.49084725]
[1770099914514,4.04488992,103.61,103.58,10.1448448]
[1770099914721,4.04488992,103.6,103.58,0.49084725]
[1770099915013,3.58670541,103.6,103.58,0.49084725]
[1770099918929,10.11017364,103.61,103.59,0.49084725]
[1770099918930,3.58670541,103.61,103.59,0.49084725]
[1770099919108,13.69583141,103.62,103.59,0.49084725]
[1770099921228,3.58670541,103.61,103.59,0.49084725]
[1770099921524,4.0679796,103.61,103.58,10.11943601]
[1770099929032,0.48127419,103.6,103.58,10.11943601]
[1770099929329,0.48127419,103.6,103.58,9.65429252]
[1770099929524,4.0679796,103.61,103.58,10.11965709]
[1770099929915,4.0679796,103.61,103.59,0.46536457]
[1770099930137,13.719072,103.62,103.59,0.46536457]
[1770099930336,13.71798851,103.63,103.59,0.46536457]
[1770099931137,13.71798851,103.63,103.6,0.46536457]
[1770099935138,3.58670541,103.62,103.6,0.46536457]
[1770099935534,13.71798851,103.63,103.6,0.46536457]
[1770099936739,4.0679796,103.62,103.6,0.46536457]
[1770099937135,3.58670541,103.62,103.6,0.46536457]
[1770099938425,13.71798851,103.63,103.6,0.46536457]
[1770099940342,4.0679796,103.63,103.61,0.46536457]
[1770099941836,0.48127419,103.63,103.61,0.46536457]
[1770099942345,17.51109484,103.64,103.61,0.46536457]
[1770099942537,13.71339498,103.64,103.61,0.46536457]
[1770099942747,13.81244032,103.65,103.62,0.46536457]
[1770099942931,13.33116613,103.65,103.62,0.46536457]
[1770099943130,9.74816392,103.65,103.62,0.46536457]
[1770099943346,0.1,103.65,103.63,0.46536457]
[1770099946842,3.68300221,103.65,103.63,0.46536457]
[1770099947850,13.81258923,103.65,103.61,13.23414642]
[1770099948151,3.58300221,103.63,103.6,9.65221941]
[1770099949253,33.86794621,103.65,103.59,3.58300221]
[1770099949254,9.64552119,103.68,103.63,9.64955846]
[1770099949459,0.48127419,103.68,103.65,3.58300221]
[1770099949630,0.48127419,103.68,103.64,3.58300221]
[1770099949958,14.78384028,103.7,103.63,10.11492303]
[1770099949959,4.0642764,103.66,103.63,10.11492303]
[1770099950256,3.58300221,103.65,103.63,0.46536457]
[1770099951234,3.58300221,103.64,103.62,0.49793324]
[1770099951439,0.48608487,103.63,103.61,10.14913817]
[1770099952348,4.06908708,103.64,103.61,10.14913817]
[1770099954650,3.58300221,103.63,103.61,10.14913817]
[1770099954857,4.06908708,103.64,103.61,10.14913817]
[1770099956632,3.58300221,103.63,103.61,0.49793324]
[1770099956836,3.58300221,103.63,103.61,10.14937273]
[1770099957266,4.06908708,103.64,103.61,10.14937273]
[1770099960990,4.06908708,103.62,103.6,9.65220778]
[1770099961147,4.06908708,103.62,103.6,10.15014102]
[1770099961656,3.58300221,103.62,103.6,10.15014102]
[1770099961859,4.06908708,103.62,103.6,10.15014102]
[1770099962058,0.48608487,103.61,103.59,9.65303821]
[1770099962241,4.06908708,103.61,103.58,10.15188293]
[1770099962442,4.06908708,103.6,103.58,0.49793324]
[1770099963161,3.58300221,103.59,103.58,0.49793324]
[1770099963366,3.58300221,103.59,103.57,36.95286497]
[1770099964264,3.58300221,103.59,103.57,10.15286497]
[1770099964778,3.58300221,103.59,103.57,0.49793324]
[1770099964945,4.06908708,103.58,103.56,10.15378947]
[1770099965459,0.48608487,103.6,103.57,9.65527741]
[1770099965770,4.06908708,103.62,103.59,0.49793324]
[1770099966150,4.06908708,103.64,103.6,0.49793324]
[1770099966351,4.06908708,103.64,103.6,10.14965338]
[1770099966659,3.58300221,103.63,103.6,10.14965338]
[1770099967159,3.58300221,103.63,103.6,9.65172014]
[1770099967466,3.58300221,103.63,103.61,0.49793324]
[1770099970775,4.06908708,103.63,103.61,0.49793324]
[1770099980498,4.03544229,103.64,103.62,0.46583095]
[1770099980873,4.03544229,103.64,103.61,10.11730481]
[1770099984000,0.45244008,103.63,103.61,10.11730481]
[1770099985680,0.45244008,103.62,103.59,10.11877406]
[1770099985879,4.03544229,103.62,103.6,0.46583095]
[1770099986078,0.45244008,103.61,103.59,0.46583095]
[1770099986301,4.03544229,103.61,103.59,0.46583095]
[1770099991186,4.03544229,103.61,103.58,10.11976975]
[1770099991706,4.03544229,103.61,103.59,0.46583095]
[1770100001214,0.45244008,103.62,103.59,10.1192221]
[1770100001517,0.45244008,103.61,103.59,10.1192221]
[1770100005527,4.0368022,103.62,103.59,10.1192221]
[1770100005727,13.68655174,103.63,103.6,0.46583095]
[1770100006045,0.45244008,103.62,103.6,0.46583095]
[1770100009626,4.0368022,103.62,103.6,0.46583095]
[1770100009812,4.0368022,103.62,103.59,10.1192221]
[1770100010127,4.0368022,103.61,103.59,0.46583095]
[1770100013035,4.0368022,103.61,103.58,9.6537705]
[1770100013219,4.0368022,103.61,103.58,10.12455908]
[1770100014110,0.45244008,103.61,103.58,10.12455908]
[1770100014509,0.45244008,103.61,103.59,0.47078858]
[1770100017931,4.0368022,103.61,103.59,0.47078858]
[1770100021239,0.45407497,103.6,103.58,10.12455908]
[1770100021731,4.03843709,103.6,103.57,10.12555385]
[1770100021929,4.03843709,103.59,103.56,10.12662353]
[1770100023632,4.03843709,103.58,103.55,36.94757837]
[1770100023842,4.03843709,103.58,103.56,0.47078858]
[1770100024310,0.45407497,103.59,103.57,0.47078858]
[1770100027539,4.03843709,103.6,103.57,9.654788]
[1770100027841,4.03843709,103.6,103.58,0.47078858]
[1770100028138,4.03843709,103.6,103.57,10.12557658]
[1770100028838,0.45407497,103.6,103.57,10.12557658]
[1770100029143,4.03843709,103.6,103.57,10.12557658]
[1770100031036,4.03843709,103.6,103.58,0.47078858]
[1770100033835,4.03843709,103.6,103.57,10.12557658]
[1770100034522,0.45407497,103.59,103.57,10.12557658]
[1770100035340,3.58436212,103.6,103.54,0.47078858]
[1770100035341,0.45407497,103.57,103.54,0.47078858]
[1770100035826,4.03843709,103.57,103.54,0.47078858]
[1770100036350,4.03843709,103.57,103.54,10.12841119]
[1770100039939,4.03843709,103.58,103.55,0.47078858]
[1770100040246,0.46066015,103.61,103.57,0.48311213]
[1770100040547,4.04502227,103.6,103.57,0.48311213]
[1770100040722,4.04502227,103.6,103.57,10.13839834]
[1770100041144,13.69756969,103.6,103.57,10.13839834]
[1770100041348,13.69756969,103.6,103.57,0.48311213]
[1770100043853,0.46066015,103.59,103.57,0.48311213]
[1770100050648,13.69756969,103.6,103.57,10.13839885]
[1770100050850,0.46066015,103.59,103.57,10.13839885]
[1770100057564,4.04502227,103.61,103.58,0.48311213]
[1770100059272,4.04502227,103.61,103.58,10.13690789]
[1770100060362,0.46066015,103.61,103.59,0.48311213]
[1770100060668,9.65104708,103.62,103.59,10.13591623]
[1770100060669,4.04502227,103.62,103.59,10.13591623]
[1770100061048,0.46066015,103.62,103.59,10.13591623]
[1770100061759,4.04502227,103.62,103.59,10.13591623]
[1770100062552,0.46066015,103.61,103.59,10.13591623]
[1770100064474,3.58436212,103.62,103.59,10.13591623]
[1770100064778,0.46066015,103.61,103.59,0.48311213]
[1770100065081,4.04493298,103.61,103.59,0.48311213]
[1770100065867,4.04493298,103.6,103.57,10.13801111]
[1770100066179,4.04493298,103.59,103.56,10.13892316]
[1770100066480,4.04493298,103.58,103.56,9.65581103]
[1770100066780,4.04493298,103.58,103.55,10.14001148]
[1770100067186,4.04493298,103.58,103.56,0.48311213]
[1770100074493,0.47338813,103.59,103.57,0.45960936]
[1770100075393,0.47338813,103.65,103.59,0.45960936]
[1770100075595,4.05766096,103.65,103.62,0.45960936]
[1770100076696,0.47338813,103.65,103.62,0.45960936]
[1770100077283,0.47338813,103.64,103.61,13.69502649]
[1770100077965,0.3765788,103.64,103.61,13.69502649]
[1770100078169,0.3765788,103.64,103.61,10.11075366]
[1770100078385,0.3765788,103.64,103.61,13.69502649]
[1770100083696,0.3765788,103.64,103.62,0.45960936]
[1770100083999,0.47338813,103.65,103.62,13.69443856]
[1770100084575,0.47338813,103.66,103.63,4.04388219]
[1770100085385,0.47338813,103.68,103.66,0.45960936]
[1770100085694,0.47338813,103.69,103.67,0.45960936]
[1770100086482,0.47338813,103.69,103.67,4.04388219]
[1770100086676,0.57338813,103.7,103.67,4.04388219]
[1770100087412,0.1,103.73,103.7,0.45960936]
[1770100087580,0.1,103.73,103.71,0.45960936]
[1770100087912,0.47338813,103.72,103.69,0.45960936]
[1770100088073,0.47338813,103.71,103.69,0.45960936]
[1770100089077,0.47338813,103.72,103.69,10.10347051]
[1770100089480,0.47338813,103.71,103.69,10.10347051]
[1770100089678,4.05766096,103.72,103.69,10.10347051]
[1770100089877,0.47338813,103.72,103.69,10.10347051]
[1770100090983,4.05766096,103.72,103.69,10.10347051]
[1770100092001,4.05766096,103.71,103.68,0.45960936]
[1770100092303,0.47338813,103.7,103.68,10.10461811]
[1770100092821,24.20161661,103.73,103.7,0.45960936]
[1770100092822,0.57338813,103.73,103.7,0.45960936]
[1770100093295,4.15766096,103.73,103.7,0.45960936]
[1770100094210,0.57338813,103.73,103.7,0.45960936]
[1770100094382,4.15766096,103.73,103.7,0.45960936]
[1770100095376,13.798269,103.73,103.7,0.45960936]
[1770100096286,0.47338813,103.72,103.7,0.45960936]
[1770100097899,0.47338813,103.72,103.69,10.10345557]
[1770100099301,4.15766096,103.73,103.7,0.45960936]
[1770100099487,0.47338813,103.72,103.7,0.45960936]
[1770100100091,0.45860646,103.71,103.69,10.10194167]
[1770100100402,0.45860646,103.7,103.67,30.84236829]
[1770100100606,4.04287929,103.72,103.69,0.45809546]
[1770100100783,13.68424868,103.72,103.69,0.45809546]
[1770100101390,4.04287929,103.72,103.69,0.45809546]
[1770100101592,0.45860646,103.72,103.69,0.45809546]
[1770100102311,0.45860646,103.72,103.7,0.45809546]
[1770100103712,9.740891,103.73,103.71,0.45809546]
[1770100103713,0.55860646,103.73,103.71,0.45809546]
[1770100105909,0.1,103.73,103.71,0.45809546]
[1770100106103,0.1,103.73,103.72,0.45809546]
[1770100106501,0.1,103.73,103.71,0.45809546]
[1770100107908,3.68427283,103.73,103.7,0.45809546]
[1770100108112,0.45860646,103.72,103.69,10.1018748]
[1770100108315,4.04287929,103.72,103.69,10.1018748]
[1770100108816,0.45860646,103.72,103.69,10.1018748]
[1770100111217,0.45860646,103.72,103.7,0.45809546]
[1770100115018,0.1,103.73,103.71,10.10036717]
[1770100115216,0.1,103.73,103.72,0.45809546]
[1770100115801,0.1,103.74,103.72,13.68371036]
[1770100115999,0.1,103.75,103.74,0.45809546]
[1770100116206,1e-08,103.76,103.74,4.04236829]
[1770100116512,0.1,103.77,103.75,4.04236829]
[1770100116716,6.24656642,103.79,103.77,0.45809546]
[1770100116902,6.24656642,103.79,103.77,4.04236829]
[1770100117306,6.70517288,103.79,103.76,0.45809546]
[1770100117616,4.04287929,103.78,103.75,10.09664967]
[1770100118297,0.45860646,103.78,103.75,10.09664967]
[1770100118517,0.45860646,103.78,103.75,13.6809225]
[1770100121317,19.9242918,103.79,103.76,0.45809546]
[1770100122828,0.45860646,103.78,103.76,0.45809546]
[1770100123014,0.45860646,103.78,103.75,13.6809225]
[1770100124432,0.45860646,103.78,103.75,13.66884182]
[1770100125047,6.70517288,103.79,103.76,10.09570499]
[1770100125910,0.45860646,103.78,103.75,10.09615075]
[1770100126809,0.45860646,103.76,103.72,24.5594504]
[1770100127028,0.45860646,103.76,103.73,9.63986427]
[1770100127224,0.45860646,103.76,103.73,10.09795973]
[1770100127419,0.45860646,103.76,103.72,13.67114844]
[1770100127420,0.45860646,103.75,103.72,13.67114844]
[1770100127626,4.03079861,103.75,103.72,10.09895629]
[1770100128135,0.45860646,103.74,103.72,9.64086083]
[1770100128636,0.45860646,103.75,103.72,10.09895629]
[1770100130135,0.45860646,103.75,103.72,13.67114844]
[1770100133661,0.47501996,103.76,103.73,0.45660716]
[1770100134528,0.47501996,103.76,103.72,13.21305298]
[1770100134732,4.04721211,103.75,103.72,10.09746799]
[1770100135730,0.47501996,103.73,103.71,9.64183891]
[1770100136130,9.63762528,103.76,103.72,0.45660716]
[1770100136338,0.47501996,103.77,103.74,0.45660716]
[1770100136553,0.47501996,103.77,103.74,4.02879931]
[1770100137421,0.47501996,103.77,103.74,0.45660716]
[1770100137626,0.47501996,103.77,103.74,4.02879931]
[1770100138259,0.47501996,103.77,103.74,13.66768179]
[1770100139659,6.24656642,103.79,103.77,0.45660716]
[1770100139855,6.24656642,103.79,103.77,4.02879931]
[1770100140028,0.1,103.79,103.77,0.45660716]
[1770100140229,0.1,103.79,103.77,13.66500331]
[1770100140437,0.1,103.79,103.77,10.09281116]
[1770100140637,0.1,103.79,103.77,13.66500331]
[1770100141750,0.57501996,103.79,103.77,10.09281116]
[1770100141950,0.57501996,103.79,103.76,13.66603236]
[1770100142962,1e-08,103.79,103.76,13.2094252]
[1770100143257,0.1,103.8,103.76,13.2094252]
[1770100143258,0.1,103.81,103.8,0.45660716]
[1770100143641,0.319614,103.82,103.8,4.02879931]
[1770100144649,0.1,103.83,103.82,0.45660716]
[1770100145040,0.47501996,103.87,103.83,0.45660716]
[1770100145226,0.47501996,103.87,103.83,4.02879931]
[1770100145433,0.47501996,103.86,103.83,0.45660716]
[1770100145638,0.47501996,103.86,103.83,4.02879931]
[1770100146138,6.24932181,103.88,103.86,0.45660716]
[1770100146336,0.1,103.88,103.86,4.02879931]
[1770100147059,0.1,103.88,103.86,13.65675836]
[1770100147354,0.47501996,103.91,103.87,0.45660716]
[1770100147544,0.47501996,103.92,103.88,4.00363691]
[1770100149031,0.47501996,103.91,103.88,10.05781752]
[1770100149227,0.47501996,103.95,103.89,0.43144476]
[1770100149446,0.47501996,103.94,103.9,4.00363691]
[1770100149627,0.47501996,103.94,103.88,9.62637276]
[1770100149628,0.47501996,103.94,103.91,4.00363691]
[1770100150030,0.47501996,103.94,103.91,0.43144476]
[1770100151064,0.47501996,103.94,103.91,13.62719]
[1770100151238,0.47501996,103.95,103.91,10.05499785]
[1770100151439,0.47501996,103.95,103.92,4.02879931]
[1770100151959,0.5144758,104.02,103.94,7.1443843]
[1770100152158,0.5144758,104.02,103.92,26.76]
[1770100152159,0.319614,104.03,103.99,5.02673186]
[1770100152338,0.319614,104.03,104.01,3.57219215]
[1770100152541,1e-08,104.03,104.02,3.57219215]
[1770100152854,6.64090671,104.05,104.02,3.57219215]
[1770100153056,6.64090671,104.05,104.0,9.61538461]
[1770100153259,6.12643091,104.05,104.02,3.57219215]
[1770100153559,6.11976987,104.1,104.05,0.04353912]
[1770100153861,6.11976987,104.1,104.08,3.57219215]
[1770100154154,4.08666795,104.12,104.07,0.04353912]
[1770100154357,9.38874695,104.12,104.07,0.04353912]
[1770100154562,6.10219356,104.14,104.1,0.45660716]
[1770100154761,15.6943809,104.19,104.13,8.87427115]
[1770100154938,8.87427115,104.16,104.12,0.45660716]
[1770100155134,8.87427115,104.13,104.09,9.60681188]
[1770100155340,8.87427115,104.12,104.08,0.45660716]
[1770100155539,8.87427115,104.11,104.07,9.60866005]
[1770100155749,33.60537685,104.15,104.06,0.45660716]
[1770100155750,8.87427115,104.1,104.06,0.45660716]
[1770100155946,8.87427115,104.11,104.08,9.60798122]
[1770100156138,8.87427115,104.11,104.07,0.45660716]
[1770100156644,9.34929111,104.11,104.07,0.45660716]
[1770100157053,8.87427115,104.09,104.05,10.06725945]
[1770100157467,8.87427115,104.09,104.05,18.9415306]
[1770100158352,9.34929111,104.08,104.04,0.45660716]
[1770100158658,9.34929111,104.06,104.02,0.45660716]
[1770100158853,8.87427115,104.05,104.01,10.07080319]
[1770100159161,8.87427115,104.05,104.02,0.45660716]
[1770100159357,0.47501996,104.06,104.02,8.87427115]
[1770100160266,8.87427115,104.05,104.01,18.48846718]
[1770100160568,9.53695938,104.04,103.99,8.87427115]
[1770100160864,8.87427115,104.01,103.98,9.61642062]
[1770100161067,8.87427115,104.02,103.98,9.61642062]
[1770100161369,8.87427115,104.02,103.98,10.23155051]
[1770100161562,9.53695938,104.03,103.98,19.10582166]
[1770100161866,8.87427115,104.03,103.99,9.48940104]
[1770100162171,8.87427115,104.06,104.02,8.87427115]
[1770100162353,8.87427115,104.06,104.02,9.51566806]
[1770100162560,0.66268823,104.07,104.02,9.51566806]
[1770100162746,8.87427115,104.06,104.02,9.51566806]
[1770100162946,8.87427115,104.06,104.02,0.64139691]
[1770100163554,8.87427115,104.06,104.02,10.25487276]
[1770100163869,8.87427115,104.05,104.01,19.12981608]
[1770100164051,9.53695938,104.05,104.01,10.25554493]
[1770100164563,9.53695938,104.05,104.01,0.64139691]
[1770100164764,0.66268823,104.03,103.99,19.13128981]
[1770100165068,9.53695938,104.02,103.98,9.61701509]
[1770100165364,9.53695938,104.01,103.96,155.29275922]
[1770100165577,9.53695938,104.01,103.97,9.61795353]
[1770100165868,0.66268823,104.01,103.97,10.25885282]
[1770100166170,9.53695938,104.01,103.97,10.25885282]
[1770100166363,9.53695938,104.01,103.97,10.25934038]
[1770100166546,9.53695938,104.0,103.96,155.39558648]
[1770100166748,9.53695938,104.0,103.97,9.61805343]
[1770100167050,9.53695938,104.0,103.96,156.03720506]
[1770100167760,9.53695938,104.0,103.96,164.91147621]
[1770100168168,9.53695938,104.0,103.96,156.03720506]
[1770100168665,0.66268823,104.02,103.98,0.64139691]
[1770100168862,0.66268823,104.02,103.98,9.51566806]
[1770100169655,19.14872777,104.04,104.0,0.64139691]
[1770100170569,8.87427115,104.03,104.0,0.64139691]
[1770100170967,8.87427115,104.03,103.99,18.49058041]
[1770100171185,9.53695938,104.01,103.97,9.61760463]
[1770100171362,9.53695938,104.01,103.98,9.6171484]
[1770100172673,0.66268823,104.02,103.98,19.13281646]
[1770100173071,9.53695938,104.02,103.98,10.25854531]
[1770100173262,9.53695938,104.01,103.97,10.25942091]
[1770100173658,19.14981158,104.03,103.98,9.51566806]
[1770100173974,10.27476004,104.04,104.0,0.64139691]
[1770100174156,10.27476004,104.04,103.98,19.13251446]
[1770100174157,8.87427115,104.02,103.98,19.13251446]
[1770100174356,0.66268823,104.03,103.98,19.13251446]
[1770100174553,8.87427115,104.02,103.98,19.13251446]
[1770100174767,9.61207181,104.04,103.97,24.04475525]
[1770100174768,8.87427115,104.0,103.97,10.25939104]
[1770100175076,9.53695938,104.01,103.98,9.61715562]
[1770100177572,0.66268823,104.01,103.98,9.61715562]
[1770100177872,9.53695938,104.01,103.98,9.61715562]
[1770100178565,9.53695938,104.0,103.96,145.77709116]
[1770100178761,9.53695938,104.0,103.97,9.61799915]
[1770100179773,18.48978939,104.0,103.96,156.03754609]
[1770100179960,8.87427115,104.0,103.96,164.91181724]
[1770100180162,9.53695938,103.99,103.96,145.77709116]
[1770100180565,0.66268823,103.98,103.96,145.77709116]
[1770100182082,9.53695938,103.97,103.96,142.76492866]
[1770100182385,9.53695938,103.97,103.92,1.53747358]
[1770100182386,8.87427115,103.97,103.92,1.53747358]
[1770100182581,33.66062904,103.98,103.92,1.53747358]
[1770100182582,8.87427115,103.95,103.92,1.53747358]
[1770100182885,8.87427115,103.95,103.92,9.62278342]
[1770100183389,8.87427115,103.95,103.92,11.160257]
[1770100183688,8.87427115,103.95,103.92,1.53747358]
[1770100184494,18.49440978,103.95,103.92,1.53747358]
[1770100185286,8.87427115,103.95,103.92,11.16011103]
[1770100186480,8.90331225,103.95,103.92,11.16011103]
[1770100186783,8.90331225,103.94,103.92,1.53747358]
[1770100187668,9.61956469,103.96,103.93,1.53747358]
[1770100187874,57.64603474,104.09,103.95,1.53747358]
[1770100187875,18.83782239,103.99,103.95,1.53747358]
[1770100188183,0.31820088,103.99,103.95,10.44078583]
[1770100188371,0.31820088,103.99,103.95,20.06006772]
[1770100188881,24.0374613,104.01,103.98,1.53747358]
[1770100188882,0.3914579,104.01,103.98,1.53747358]
[1770100189064,9.29477015,104.02,103.98,1.53747358]
[1770100189483,8.90331225,104.01,103.98,1.53747358]
[1770100190391,8.90331225,104.0,103.96,11.27352447]
[1770100191284,9.64866591,104.0,103.96,11.27352447]
[1770100191799,9.64866591,104.0,103.96,9.61874941]
[1770100192003,9.61537795,104.01,103.97,1.74468361]
[1770100192004,19.26404386,104.01,103.97,1.74468361]
[1770100192383,8.90331225,104.0,103.97,11.36251608]
[1770100193269,10.36073161,104.01,103.97,11.36251608]
[1770100193270,19.26404386,104.01,103.97,11.36251608]
[1770100194193,8.90331225,104.0,103.97,11.36251608]
[1770100195289,9.91769782,103.99,103.96,11.36334695]
[1770100195899,1.01438557,103.99,103.96,11.36334695]
[1770100196105,19.53312833,104.0,103.96,11.36334695]
[1770100196269,8.90331225,103.98,103.96,1.74468361]
[1770100196473,9.98296653,103.98,103.95,1.74468361]
[1770100198004,19.60038951,103.98,103.95,1.74468361]
[1770100198897,10.11150648,103.97,103.94,1.74468361]
[1770100199087,8.90331225,103.96,103.93,1.74468361]
[1770100199395,10.17464367,103.96,103.93,1.74468361]
[1770100199905,8.90331225,103.95,103.92,11.36699744]
[1770100200199,19.79474478,103.95,103.91,11.36800532]
[1770100200701,1.33376077,103.97,103.94,1.74468361]
[1770100200888,19.85541142,103.97,103.94,1.74468361]
[1770100201093,19.85541142,103.97,103.93,1.74468361]
[1770100202001,10.298849,103.96,103.93,1.74468361]
[1770100202183,10.298849,103.96,103.92,11.36713952]
[1770100203398,10.42017877,103.95,103.92,1.74468361]
[1770100204104,10.42017877,103.95,103.92,11.36738208]
[1770100205703,8.90331225,103.94,103.91,11.36796264]
[1770100205886,10.5386379,103.94,103.91,11.36796264]
[1770100206405,8.90331225,103.94,103.91,11.36796264]
[1770100208010,8.90331225,103.92,103.89,11.36980675]
[1770100208380,1.72823657,103.93,103.9,1.74468361]
[1770100208719,9.6210444,103.94,103.91,11.36802567]
[1770100208720,8.90331225,103.94,103.91,11.36802567]
[1770100209303,8.90331225,103.95,103.92,1.74468361]
[1770100209501,20.25073127,103.96,103.92,1.74468361]
[1770100209691,8.90331225,103.95,103.92,1.74468361]
[1770100209892,10.63154882,103.95,103.92,11.36723726]
[1770100210809,20.25156739,103.95,103.92,11.36723726]
[1770100211482,10.63154882,103.97,103.93,8.90331225]
[1770100211687,1.72823657,103.97,103.94,1.74468361]
[1770100211885,1.72823657,103.97,103.94,11.36513755]
[1770100212788,10.63154882,103.96,103.92,11.36696997]
[1770100213110,10.63154882,103.96,103.93,9.6216319]